fUST/lending_fUST_20250617
["ID","MTS","AMOUNT","RATE_DAILY","PERIOD"]
[366247337,1750163441916,-460.0,0.00024136,6]
[366247338,1750163441926,-460.0,0.00024136,6]
[366247339,1750163441935,-245.20649971,0.00024136,6]
[366247340,1750163441945,-224.42441852,0.00024136,6]
[366247341,1750163441955,-460.0,0.00024136,6]
[366247342,1750163441964,-460.0,0.00024136,6]
[366247343,1750163441974,-509.75489602,0.00024136,6]
[366247344,1750163441983,-460.0,0.00024136,6]
[366247345,1750163441994,-460.0,0.00024136,6]
[366247346,1750163442004,-460.0,0.00024136,6]
[366247347,1750163442014,-460.0,0.00024136,6]
[366247348,1750163442025,-390.44207642,0.00024136,6]
[366247349,1750163442035,-460.0,0.00024136,6]
[366247350,1750163442044,-460.0,0.00024136,6]
[366247351,1750163442054,-410.0,0.00024136,6]
[366247352,1750163442065,-340.0,0.00024136,6]
[366247353,1750163442075,-460.0,0.00024136,6]
[366247354,1750163442085,-460.0,0.00024136,6]
[366247355,1750163442095,-460.0,0.00024136,6]
[366247356,1750163442105,-460.0,0.00024136,6]
[366247358,1750163442115,-1939.62,0.00024136,2]
[366247360,1750163442126,-460.0,0.00024136,6]
[366247361,1750163442137,-500.0,0.00024136,6]
[366247362,1750163442146,-1284.83,0.00024136,6]
[366247363,1750163442156,-556.01586144,0.00024136,6]
[366247364,1750163442167,-578.27801903,0.00024136,6]
[366247365,1750163442176,-630.45,0.00024136,6]
[366247366,1750163442186,-460.0,0.00024136,6]
[366247367,1750163442196,-460.0,0.00024136,6]
[366247368,1750163442206,-460.0,0.00024136,6]
[366247369,1750163442216,-878.68,0.00024136,6]
[366247370,1750163442225,-461.79756212,0.00024136,6]
[366247371,1750163442235,-460.0,0.00024136,6]
[366247372,1750163442245,-460.0,0.00024136,6]
[366247373,1750163442254,-410.00254982,0.00024136,6]
[366247374,1750163442265,-440.0,0.00024136,6]
[366247375,1750163442275,-397.38973575,0.00024136,6]
[366247376,1750163442286,-460.0,0.00024136,6]
[366247377,1750163442296,-388.17129896,0.00024136,6]
[366247378,1750163442305,-500.0,0.00024136,6]
[366247379,1750163442315,-460.0,0.00024136,6]
[366247380,1750163442325,-460.0,0.00024136,6]
[366247381,1750163442335,-460.0,0.00024136,6]
[366247383,1750163442344,-211.0628732,0.00024136,6]
[366247385,1750163442354,-460.0,0.00024136,6]
[366247386,1750163442365,-460.0,0.00024136,6]
[366247387,1750163442374,-460.0,0.00024136,6]
[366247388,1750163442384,-460.0,0.00024136,6]
[366247390,1750163442393,-460.0,0.00024136,6]
[366247392,1750163442403,-460.0,0.00024136,6]
[366247393,1750163442412,-1177.89,0.00024136,6]
[366247394,1750163442421,-460.0,0.00024136,6]
[366247395,1750163442431,-367.42707326,0.00024136,6]
[366247396,1750163442440,-430.0,0.00024136,6]
[366247398,1750163442450,-460.0,0.00024136,6]
[366247399,1750163442460,-151.0,0.00024136,7]
[366247400,1750163442469,-460.0,0.00024136,6]
[366247401,1750163442479,-460.0,0.00024136,6]
[366247402,1750163442488,-460.0,0.00024136,6]
[366247403,1750163442499,-460.0,0.00024136,6]
[366247404,1750163442508,-460.0,0.00024136,6]
[366247405,1750163442518,-460.0,0.00024136,6]
[366247406,1750163442528,-460.0,0.00024136,6]
[366247407,1750163442537,-460.0,0.00024136,6]
[366247408,1750163442547,-460.0,0.00024136,6]
[366247410,1750163442556,-460.0,0.00024136,6]
[366247411,1750163442567,-460.0,0.00024136,6]
[366247413,1750163442577,-460.0,0.00024136,6]
[366247414,1750163442587,-460.0,0.00024136,6]
[366247415,1750163442596,-2315.25,0.00024136,2]
[366247416,1750163442606,-396.97518211,0.00024136,6]
[366247417,1750163442616,-460.0,0.00024136,6]
[366247419,1750163442626,-460.0,0.00024136,6]
[366247421,1750163442635,-978.66,0.00024136,6]
[366247423,1750163442645,-245.686066,0.00024136,7]
[366247424,1750163442655,-151.0,0.00024136,7]
[366247425,1750163442664,-460.0,0.00024136,6]
[366247426,1750163442674,-460.0,0.00024136,6]
[366247428,1750163442683,-460.0,0.00024136,6]
[366247429,1750163442694,-430.0,0.00024136,6]
[366247430,1750163442703,-460.0,0.00024136,6]
[366247431,1750163442712,-153.916488,0.00024136,7]
[366247432,1750163442722,-460.0,0.00024136,6]
[366247433,1750163442732,-430.0,0.00024136,6]
[366247434,1750163442742,-460.0,0.00024136,6]
[366247435,1750163442752,-417.76044357,0.00024136,6]
[366247436,1750163442762,-460.0,0.00024136,6]
[366247437,1750163442772,-400.0,0.00024136,6]
[366247445,1750163442902,-460.0,0.00024136,6]
[366247446,1750163442915,-460.0,0.00024136,6]
[366247447,1750163442926,-460.0,0.00024136,6]
[366247448,1750163442935,-427.53191257,0.00024136,6]
[366247449,1750163442945,-460.0,0.00024136,6]
[366247450,1750163442955,-821.24,0.00024136,6]
[366247451,1750163442965,-581.99,0.00024136,6]
[366247452,1750163442974,-400.62638663,0.00024136,6]
[366247453,1750163442983,-460.0,0.00024136,6]
[366247454,1750163442992,-460.0,0.00024136,6]
[366247455,1750163443003,-849.05,0.00024136,6]
[366247456,1750163443014,-1547.3,0.00024136,6]
[366247457,1750163443023,-397.41721495,0.00024136,6]
[366247458,1750163443033,-460.0,0.00024136,6]
[366247459,1750163443043,-440.0,0.00024136,6]
[366247460,1750163443052,-460.0,0.00024136,6]
[366247461,1750163443062,-460.0,0.00024136,6]
[366247462,1750163443072,-460.0,0.00024136,6]
[366247463,1750163443081,-762.18,0.00024136,6]
[366247464,1750163443091,-371.81687837,0.00024136,6]
[366247465,1750163443100,-460.0,0.00024136,6]
[366247466,1750163443110,-361.14622321,0.00024136,6]
[366247467,1750163443120,-3518.92,0.00024136,6]
[366247468,1750163443133,-460.0,0.00024136,6]
[366247469,1750163443143,-396.38453538,0.00024136,6]
[366247470,1750163443153,-424.29468684,0.00024136,6]
[366247471,1750163443162,-460.0,0.00024136,6]
[366247472,1750163443173,-460.0,0.00024136,6]
[366247473,1750163443182,-151.0,0.00024136,7]
[366247474,1750163443191,-837.95,0.00024136,6]
[366247475,1750163443202,-460.0,0.00024136,6]
[366247476,1750163443212,-460.0,0.00024136,6]
[366247477,1750163443222,-460.0,0.00024136,6]
[366247478,1750163443231,-1921.94,0.00024136,6]
[366247479,1750163443241,-460.0,0.00024136,6]
[366247480,1750163443250,-151.0,0.00024136,7]
[366247481,1750163443260,-1277.31,0.00024136,6]
[366247482,1750163443270,-460.0,0.00024136,6]
[366247483,1750163443279,-460.0,0.00024136,6]
[366247484,1750163443289,-549.83,0.00024136,6]
[366247485,1750163443298,-460.0,0.00024136,6]
[366247486,1750163443308,-409.36866565,0.00024136,6]
[366247487,1750163443317,-460.0,0.00024136,6]
[366247488,1750163443327,-460.0,0.00024136,6]
[366247490,1750163443336,-460.0,0.00024136,6]
[366247492,1750163443346,-151.0,0.00024136,7]
[366247494,1750163443355,-460.0,0.00024136,6]
[366247495,1750163443365,-874.53,0.00024136,6]
[366247496,1750163443374,-366.29051811,0.00024136,6]
[366247497,1750163443383,-6613.6,0.00024136,6]
[366247498,1750163443392,-364.69847157,0.00024136,6]
[366247499,1750163443402,-1129.55,0.00024136,6]
[366247500,1750163443411,-460.0,0.00024136,6]
[366247501,1750163443421,-460.0,0.00024136,6]
[366247502,1750163443430,-151.0,0.00024136,7]
[366247503,1750163443439,-373.05242049,0.00024136,6]
[366247504,1750163443449,-460.0,0.00024136,6]
[366247505,1750163443458,-8359.52,0.00024136,6]
[366247506,1750163443468,-460.0,0.00024136,6]
[366247507,1750163443478,-460.0,0.00024136,6]
[366247508,1750163443488,-460.0,0.00024136,6]
[366247509,1750163443497,-6487.31,0.00024136,6]
[366247510,1750163443508,-460.0,0.00024136,6]
[366247511,1750163443517,-460.0,0.00024136,6]
[366247512,1750163443527,-460.0,0.00024136,6]
[366247513,1750163443537,-430.0,0.00024136,6]
[366247514,1750163443547,-460.0,0.00024136,6]
[366247515,1750163443557,-460.0,0.00024136,6]
[366247516,1750163443567,-624.57,0.00024136,6]
[366247517,1750163443576,-443.44743996,0.00024136,6]
[366247518,1750163443585,-460.0,0.00024136,6]
[366247519,1750163443595,-407.74280332,0.00024136,6]
[366247520,1750163443605,-1362.48,0.00024136,6]
[366247521,1750163443614,-460.0,0.00024136,6]
[366247522,1750163443624,-5310.29,0.00024136,6]
[366247523,1750163443633,-777.18,0.00024136,6]
[366247524,1750163443643,-460.0,0.00024136,6]
[366247525,1750163443652,-151.0,0.00024136,7]
[366247526,1750163443662,-1708.25,0.00024136,6]
[366247527,1750163443671,-460.0,0.00024136,6]
[366247528,1750163443681,-460.0,0.00024136,6]
[366247529,1750163443691,-460.0,0.00024136,6]
[366247530,1750163443700,-648.65,0.00024136,6]
[366247531,1750163443710,-460.0,0.00024136,6]
[366247532,1750163443720,-6396.31,0.00024136,6]
[366247533,1750163443730,-440.0,0.00024136,6]
[366247534,1750163443740,-2796.25,0.00024136,6]
[366247535,1750163443750,-1461.33,0.00024136,6]
[366247536,1750163443759,-2519.23,0.00024136,6]
[366247537,1750163443768,-460.0,0.00024136,6]
[366247538,1750163443778,-460.0,0.00024136,6]
[366247539,1750163443788,-460.0,0.00024136,6]
[366247540,1750163443798,-537.42,0.00024136,6]
[366247541,1750163443808,-460.0,0.00024136,6]
[366247542,1750163443817,-460.0,0.00024136,6]
[366247543,1750163443827,-1382.992754,0.00024136,2]
[366247544,1750163443837,-460.0,0.00024136,6]
[366247545,1750163443847,-460.0,0.00024136,6]
[366247546,1750163443857,-1307.73,0.00024136,6]
[366247547,1750163443867,-460.0,0.00024136,6]
[366247548,1750163443876,-1382.992754,0.00024136,2]
[366247549,1750163443886,-460.0,0.00024136,6]
[366247550,1750163443896,-460.0,0.00024136,6]
[366247551,1750163443907,-158.362726,0.00024136,7]
[366247552,1750163443916,-492.68,0.00024136,6]
[366247553,1750163443926,-460.0,0.00024136,6]
[366247554,1750163443935,-628.58,0.00024136,6]
[366247555,1750163443946,-460.0,0.00024136,6]
[366247556,1750163443955,-460.0,0.00024136,6]
[366247557,1750163443965,-615.28,0.00024136,6]
[366247558,1750163443974,-460.0,0.00024136,6]
[366247559,1750163443983,-2727.75,0.00024136,6]
[366247560,1750163443993,-460.0,0.00024136,6]
[366247561,1750163444003,-151.0,0.00024136,7]
[366247562,1750163444015,-460.0,0.00024136,6]
[366247563,1750163444024,-2511.64,0.00024136,6]
[366247564,1750163444034,-4928.55,0.00024136,6]
[366247565,1750163444044,-1808.21,0.00024136,6]
[366247566,1750163444054,-460.0,0.00024136,6]
[366247567,1750163444064,-460.0,0.00024136,6]
[366247568,1750163444075,-644.18,0.00024136,6]
[366247569,1750163444084,-460.0,0.00024136,6]
[366247570,1750163444095,-660.71,0.00024136,6]
[366247571,1750163444105,-463.16,0.00024136,6]
[366247572,1750163444115,-2338.38,0.00024136,6]
[366247573,1750163444125,-460.0,0.00024136,6]
[366247574,1750163444135,-151.0,0.00024136,7]
[366247575,1750163444147,-460.0,0.00024136,6]
[366247576,1750163444157,-460.0,0.00024136,6]
[366247577,1750163444168,-460.0,0.00024136,6]
[366247578,1750163444178,-800.18,0.00024136,6]
[366247579,1750163444189,-410.0,0.00024136,6]
[366247580,1750163444199,-1121.25,0.00024136,6]
[366247581,1750163444208,-460.0,0.00024136,6]
[366247582,1750163444219,-460.0,0.00024136,6]
[366247583,1750163444229,-200.0,0.00024136,6]
[366247584,1750163444239,-763.16,0.00024136,6]
[366247585,1750163444249,-460.0,0.00024136,6]
[366247586,1750163444259,-1186.33,0.00024136,6]
[366247587,1750163444269,-460.0,0.00024136,6]
[366247588,1750163444279,-420.0,0.00024136,6]
[366247589,1750163444289,-460.0,0.00024136,6]
[366247590,1750163444298,-299.99093939,0.00024136,6]
[366247591,1750163444308,-460.0,0.00024136,6]
[366247592,1750163444318,-460.0,0.00024136,6]
[366247593,1750163444327,-404.87125098,0.00024136,6]
[366247594,1750163444336,-460.0,0.00024136,6]
[366247595,1750163444346,-915.42,0.00024136,6]
[366247596,1750163444355,-440.0,0.00024136,6]
[366247597,1750163444365,-430.0,0.00024136,6]
[366247598,1750163444374,-431.64924353,0.00024136,6]
[366247599,1750163444383,-460.0,0.00024136,6]
[366247600,1750163444393,-422.64601486,0.00024136,6]
[366247601,1750163444402,-460.0,0.00024136,6]
[366247602,1750163444412,-460.0,0.00024136,6]
[366247603,1750163444421,-460.0,0.00024136,6]
[366247604,1750163444430,-460.0,0.00024136,6]
[366247605,1750163444440,-460.0,0.00024136,6]
[366247606,1750163444449,-933.04,0.00024136,6]
[366247607,1750163444459,-460.0,0.00024136,6]
[366247608,1750163444468,-6872.7,0.00024136,6]
[366247609,1750163444478,-2193.87,0.00024136,6]
[366247610,1750163444487,-1523.66,0.00024136,6]
[366247611,1750163444497,-460.0,0.00024136,6]
[366247612,1750163444506,-458.2348613,0.00024136,6]
[366247613,1750163444517,-478.20330818,0.00024136,6]
[366247614,1750163444527,-460.0,0.00024136,6]
[366247615,1750163444536,-460.0,0.00024136,6]
[366247616,1750163444546,-460.0,0.00024136,6]
[366247617,1750163444556,-1193.76,0.00024136,6]
[366247618,1750163444565,-685.87,0.00024136,6]
[366247619,1750163444574,-5083.4,0.00024136,6]
[366247620,1750163444584,-460.0,0.00024136,6]
[366247621,1750163444593,-460.0,0.00024136,6]
[366247622,1750163444603,-431.21507499,0.00024136,6]
[366247623,1750163444612,-460.0,0.00024136,6]
[366247624,1750163444622,-4926.03,0.00024136,6]
[366247625,1750163444631,-3407.18,0.00024136,6]
[366247626,1750163444640,-2178.8,0.00024136,6]
[366247627,1750163444650,-460.0,0.00024136,6]
[366247628,1750163444659,-410.39818872,0.00024136,6]
[366247629,1750163444668,-554.17583739,0.00024136,6]
[366247630,1750163444678,-578.39822895,0.00024136,6]
[366247631,1750163444687,-180.80316863,0.00024136,6]
[366247632,1750163444811,-509.33759398,0.00024136,6]
[366247633,1750163444822,-180.88797994,0.00024136,6]
[366247634,1750163444831,-460.0,0.00024136,6]
[366247635,1750163444842,-559.76,0.00024136,6]
[366247636,1750163444852,-208.76874545,0.00024136,6]
[366247637,1750163444861,-460.0,0.00024136,6]
[366247638,1750163444871,-1090.34,0.00024136,6]
[366247639,1750163444880,-460.0,0.00024136,6]
[366247640,1750163444889,-460.0,0.00024136,6]
[366247641,1750163444899,-460.0,0.00024136,6]
[366247642,1750163444908,-4142.86831294,0.00024146,2]
[366247643,1750163444917,-158.13,0.00024164,6]
[366247644,1750163444927,-460.0,0.00024164,6]
[366247645,1750163444936,-460.0,0.00024164,6]
[366247646,1750163444945,-315.59453138,0.00024164,6]
[366247647,1750163444954,-460.0,0.00024164,6]
[366247648,1750163444963,-460.0,0.00024164,6]
[366247649,1750163444973,-460.0,0.00024164,6]
[366247650,1750163444982,-460.0,0.00024164,6]
[366247651,1750163444991,-460.0,0.00024164,6]
[366247652,1750163445002,-460.0,0.00024164,6]
[366247653,1750163445011,-460.0,0.00024164,6]
[366247654,1750163445020,-241.81238705,0.00024164,6]
[366247655,1750163445030,-460.0,0.00024164,6]
[366247656,1750163445040,-460.0,0.00024164,6]
[366247657,1750163445049,-460.0,0.00024164,6]
[366247658,1750163445059,-460.0,0.00024164,6]
[366247659,1750163445069,-460.0,0.00024164,6]
[366247660,1750163445078,-460.0,0.00024164,6]
[366247661,1750163445087,-503.52,0.00024164,6]
[366247662,1750163445096,-460.0,0.00024164,6]
[366247663,1750163445106,-460.0,0.00024164,2]
[366247664,1750163445115,-295.1130958,0.00024164,6]
[366247665,1750163445124,-432.08691544,0.00024164,6]
[366247666,1750163445134,-460.0,0.00024164,6]
[366247667,1750163445144,-460.0,0.00024164,6]
[366247668,1750163445153,-380.8088152,0.00024164,6]
[366247669,1750163445163,-415.18779758,0.00024164,6]
[366247670,1750163445172,-460.0,0.00024164,6]
[366247671,1750163445183,-460.0,0.00024164,6]
[366247672,1750163445192,-460.0,0.00024164,6]
[366247673,1750163445201,-460.0,0.00024164,6]
[366247674,1750163445211,-460.0,0.00024164,6]
[366247675,1750163445222,-460.0,0.00024164,6]
[366247676,1750163445232,-460.0,0.00024164,6]
[366247677,1750163445241,-151.0,0.00024164,7]
[366247678,1750163445250,-460.0,0.00024164,6]
[366247679,1750163445260,-460.0,0.00024164,6]
[366247680,1750163445270,-176.41603656,0.00024164,6]
[366247681,1750163445279,-151.0,0.00024164,7]
[366247682,1750163445289,-460.0,0.00024164,6]
[366247683,1750163445298,-460.0,0.00024164,6]
[366247684,1750163445307,-460.0,0.00024164,6]
[366247685,1750163445317,-460.0,0.00024164,6]
[366247686,1750163445327,-460.0,0.00024164,6]
[366247687,1750163445337,-357.37092083,0.00024164,6]
[366247688,1750163445346,-460.0,0.00024164,6]
[366247689,1750163445356,-1939.62,0.00024164,2]
[366247690,1750163445365,-460.0,0.00024164,6]
[366247691,1750163445375,-500.0,0.00024164,6]
[366247692,1750163445384,-1284.83,0.00024164,6]
[366247693,1750163445394,-630.45,0.00024164,6]
[366247694,1750163445403,-460.0,0.00024164,6]
[366247695,1750163445413,-460.0,0.00024164,6]
[366247696,1750163445423,-460.0,0.00024164,6]
[366247697,1750163445433,-878.68,0.00024164,6]
[366247698,1750163445443,-460.0,0.00024164,6]
[366247699,1750163445452,-460.0,0.00024164,6]
[366247700,1750163445462,-460.0,0.00024164,6]
[366247701,1750163445472,-500.0,0.00024164,6]
[366247702,1750163445481,-460.0,0.00024164,6]
[366247703,1750163445491,-460.0,0.00024164,6]
[366247704,1750163445500,-460.0,0.00024164,6]
[366247705,1750163445510,-460.0,0.00024164,6]
[366247706,1750163445519,-460.0,0.00024164,6]
[366247707,1750163445528,-460.0,0.00024164,6]
[366247708,1750163445538,-460.0,0.00024164,6]
[366247709,1750163445547,-460.0,0.00024164,6]
[366247710,1750163445556,-287.16781661,0.00024164,6]
[366247711,1750163445565,-1177.89,0.00024164,6]
[366247712,1750163445574,-460.0,0.00024164,6]
[366247713,1750163445584,-525.47515005,0.00024164,6]
[366247714,1750163445594,-460.0,0.00024164,6]
[366247715,1750163445603,-460.0,0.00024164,6]
[366247716,1750163445612,-400.0,0.00024164,6]
[366247717,1750163445621,-460.0,0.00024164,6]
[366247718,1750163445631,-460.0,0.00024164,6]
[366247719,1750163445640,-460.0,0.00024164,6]
[366247720,1750163445650,-399.07637373,0.00024164,6]
[366247721,1750163445659,-460.0,0.00024164,6]
[366247722,1750163445668,-460.0,0.00024164,6]
[366247723,1750163445677,-460.0,0.00024164,6]
[366247724,1750163445687,-460.0,0.00024164,6]
[366247725,1750163445696,-460.0,0.00024164,6]
[366247726,1750163445705,-460.0,0.00024164,6]
[366247727,1750163445714,-2315.25,0.00024164,2]
[366247728,1750163445724,-460.0,0.00024164,6]
[366247729,1750163445734,-380.15011685,0.00024164,6]
[366247730,1750163445743,-978.66,0.00024164,6]
[366247731,1750163445752,-460.0,0.00024164,6]
[366247732,1750163445762,-460.0,0.00024164,6]
[366247733,1750163445771,-460.0,0.00024164,6]
[366247734,1750163445781,-460.0,0.00024164,6]
[366247735,1750163445790,-460.0,0.00024164,6]
[366247736,1750163445800,-460.0,0.00024164,6]
[366247737,1750163445809,-460.0,0.00024164,6]
[366247738,1750163445819,-362.15561107,0.00024164,6]
[366247739,1750163445829,-420.0,0.00024164,6]
[366247740,1750163445838,-460.0,0.00024164,6]
[366247741,1750163445847,-821.24,0.00024164,6]
[366247742,1750163445856,-581.99,0.00024164,6]
[366247743,1750163445866,-460.0,0.00024164,6]
[366247744,1750163445875,-460.0,0.00024164,6]
[366247745,1750163445885,-849.05,0.00024164,6]
[366247746,1750163445894,-1547.3,0.00024164,6]
[366247747,1750163445903,-460.0,0.00024164,6]
[366247748,1750163445912,-460.0,0.00024164,6]
[366247749,1750163445924,-460.0,0.00024164,6]
[366247750,1750163445933,-399.94429491,0.00024164,6]
[366247751,1750163445943,-762.18,0.00024164,6]
[366247752,1750163445952,-460.0,0.00024164,6]
[366247753,1750163445962,-3518.92,0.00024164,6]
[366247754,1750163445971,-460.0,0.00024164,6]
[366247755,1750163445980,-460.0,0.00024164,6]
[366247756,1750163445989,-233.89854203,0.00024164,6]
[366247757,1750163445998,-837.95,0.00024164,6]
[366247758,1750163446008,-460.0,0.00024164,6]
[366247759,1750163446018,-460.0,0.00024164,6]
[366247760,1750163446027,-1921.94,0.00024164,6]
[366247761,1750163446036,-460.0,0.00024164,6]
[366247762,1750163446046,-460.0,0.00024164,6]
[366247763,1750163446055,-151.0,0.00024164,7]
[366247764,1750163446064,-1277.31,0.00024164,6]
[366247765,1750163446074,-460.0,0.00024164,6]
[366247766,1750163446083,-460.0,0.00024164,6]
[366247767,1750163446092,-549.83,0.00024164,6]
[366247768,1750163446102,-460.0,0.00024164,6]
[366247769,1750163446111,-180.35449709,0.00024164,6]
[366247770,1750163446121,-349.92230395,0.00024164,6]
[366247771,1750163446130,-460.0,0.00024164,6]
[366247772,1750163446140,-460.0,0.00024164,6]
[366247773,1750163446152,-874.53,0.00024164,6]
[366247774,1750163446162,-6613.6,0.00024164,6]
[366247775,1750163446172,-1129.55,0.00024164,6]
[366247776,1750163446182,-460.0,0.00024164,6]
[366247777,1750163446193,-460.0,0.00024164,6]
[366247778,1750163446203,-8359.52,0.00024164,6]
[366247779,1750163446213,-460.0,0.00024164,6]
[366247780,1750163446224,-460.0,0.00024164,6]
[366247781,1750163446234,-460.0,0.00024164,6]
[366247782,1750163446243,-460.0,0.00024164,6]
[366247783,1750163446253,-6487.31,0.00024164,6]
[366247784,1750163446263,-460.0,0.00024164,6]
[366247785,1750163446272,-460.0,0.00024164,6]
[366247786,1750163446282,-460.0,0.00024164,6]
[366247787,1750163446291,-460.0,0.00024164,6]
[366247788,1750163446300,-460.0,0.00024164,6]
[366247789,1750163446310,-624.57,0.00024164,6]
[366247790,1750163446320,-411.21944006,0.00024164,6]
[366247791,1750163446329,-1362.48,0.00024164,6]
[366247792,1750163446338,-460.0,0.00024164,6]
[366247793,1750163446348,-5310.29,0.00024164,6]
[366247794,1750163446357,-777.18,0.00024164,6]
[366247795,1750163446367,-460.0,0.00024164,6]
[366247796,1750163446376,-1708.25,0.00024164,6]
[366247797,1750163446386,-460.0,0.00024164,6]
[366247798,1750163446395,-561.60486546,0.00024164,6]
[366247799,1750163446404,-460.0,0.00024164,6]
[366247800,1750163446413,-648.65,0.00024164,6]
[366247801,1750163446536,-460.0,0.00024164,6]
[366247802,1750163446547,-6396.31,0.00024164,6]
[366247803,1750163446557,-2796.25,0.00024164,6]
[366247804,1750163446567,-1461.33,0.00024164,6]
[366247805,1750163446577,-2519.23,0.00024164,6]
[366247806,1750163446587,-460.0,0.00024164,6]
[366247807,1750163446596,-460.0,0.00024164,6]
[366247808,1750163446605,-460.0,0.00024164,6]
[366247809,1750163446615,-537.42,0.00024164,6]
[366247810,1750163446625,-460.0,0.00024164,6]
[366247811,1750163446634,-460.0,0.00024164,6]
[366247812,1750163446645,-1382.992754,0.00024164,2]
[366247813,1750163446654,-460.0,0.00024164,6]
[366247814,1750163446664,-460.0,0.00024164,6]
[366247815,1750163446673,-1307.73,0.00024164,6]
[366247816,1750163446682,-460.0,0.00024164,6]
[366247817,1750163446693,-1382.992754,0.00024164,2]
[366247818,1750163446703,-460.0,0.00024164,6]
[366247819,1750163446712,-460.0,0.00024164,6]
[366247820,1750163446721,-492.68,0.00024164,6]
[366247821,1750163446731,-460.0,0.00024164,6]
[366247823,1750163446741,-628.58,0.00024164,6]
[366247824,1750163446751,-460.0,0.00024164,6]
[366247825,1750163446761,-460.0,0.00024164,6]
[366247826,1750163446771,-615.28,0.00024164,6]
[366247828,1750163446780,-460.0,0.00024164,6]
[366247829,1750163446790,-2727.75,0.00024164,6]
[366247830,1750163446799,-460.0,0.00024164,6]
[366247831,1750163446808,-460.0,0.00024164,6]
[366247832,1750163446818,-2511.64,0.00024164,6]
[366247833,1750163446827,-4928.55,0.00024164,6]
[366247834,1750163446836,-1808.21,0.00024164,6]
[366247835,1750163446846,-321.28137948,0.00024164,6]
[366247836,1750163446856,-460.0,0.00024164,6]
[366247837,1750163446866,-644.18,0.00024164,6]
[366247838,1750163446876,-460.0,0.00024164,6]
[366247839,1750163446885,-660.71,0.00024164,6]
[366247840,1750163446895,-463.16,0.00024164,6]
[366247841,1750163446905,-2338.38,0.00024164,6]
[366247842,1750163446914,-460.0,0.00024164,6]
[366247843,1750163446924,-151.0,0.00024164,7]
[366247844,1750163446934,-460.0,0.00024164,6]
[366247845,1750163446943,-284.72735877,0.00024164,6]
[366247846,1750163446953,-460.0,0.00024164,6]
[366247847,1750163446963,-800.18,0.00024164,6]
[366247848,1750163446972,-1121.25,0.00024164,6]
[366247849,1750163446982,-460.0,0.00024164,6]
[366247850,1750163446991,-460.0,0.00024164,6]
[366247851,1750163447001,-200.0,0.00024164,6]
[366247852,1750163447011,-763.16,0.00024164,6]
[366247853,1750163447020,-460.0,0.00024164,6]
[366247854,1750163447030,-1186.33,0.00024164,6]
[366247855,1750163447040,-460.0,0.00024164,6]
[366247856,1750163447049,-539.52285205,0.00024164,6]
[366247857,1750163447059,-460.0,0.00024164,6]
[366247858,1750163447070,-460.0,0.00024164,6]
[366247859,1750163447079,-460.0,0.00024164,6]
[366247860,1750163447089,-915.42,0.00024164,6]
[366247861,1750163447099,-460.0,0.00024164,6]